Cogmind - Beta 14 @@@ ROGUE MODE // 2024.11.21 @ 01:51:46 Player: KURIIRI Result: Destroyed by S-10 Pest with Light Assault Rifle Performance ------------- Evolutions (0) 0 Regions Visited (4) 800 Robots Destroyed (33) 165 Value Destroyed (891) 891 Prototype IDs (25) 500 Alien Tech Used (0) 0 Bonus (274) 274 TOTAL SCORE: 2630 Bonus ------- High Alert Combat Kills 2 Follower Combat Kills 7 Aligned with FarCom 300 Friendly Fire -35 Cogmind --------- Core Integrity 0/250 Matter 212/300 Energy 265/265 System Corruption 0% Temperature Warm (163) Movement Treading (160) Location -9/Mines Parts ------- > --- POWER (1) -------- Reinforced Ion Engine > --- PROPULSION (2) --- Light Treads Light Treads > --- UTILITY (2) ------ Large Storage Unit Light Armor Plating > --- WEAPON (2) ------- Heavy Assault Rifle Heavy Assault Rifle > --- INVENTORY (15) --- Fission Core Light Treads Light Treads Improved Heat Sink Core Shielding EM Pulse Gun Firepult Assault Rifle Rocket Launcher Peak State ------------ > --- POWER ------------ Reinforced Ion Engine > --- PROPULSION ------- Light Treads Light Treads > --- UTILITY ---------- Medium Storage Unit Light Armor Plating > --- WEAPON ----------- Heavy Assault Rifle Heavy Assault Rifle > --- INVENTORY -------- Fission Core Light Treads Light Treads Improved Heat Sink Core Shielding EM Pulse Gun Firepult Assault Rifle Rocket Launcher [Rating: 13] Favorites ----------- Power Reinforced Ion Engine Engine Reinforced Ion Engine Propulsion Light Treads Treads Light Treads Utility Light Armor Plating Storage Medium Storage Unit Protection Light Armor Plating Weapon Beam Cannon Energy Gun EM Pulse Gun Energy Cannon Beam Cannon Ballistic Gun Heavy Assault Rifle Launcher Rocket Launcher Build | -11 -10 -10 -10 -9 ------- Run | Yrd Mat Min Exi Min Slots Evolved . | . . . . . Power . | . . . . . Propulsion . | . . . . . Utility . | . . . . . Weapon . | . . . . . Parts Attached 27 | 7 13 6 1 . Power 2 | 1 1 . . . Engine 2 | 1 1 . . . Core . | . . . . . Reactor . | . . . . . Propulsion 6 | 2 3 1 . . Treads 6 | 2 3 1 . . Leg . | . . . . . Wheel . | . . . . . Hover . | . . . . . Flight . | . . . . . Utility 8 | 1 5 1 1 . Device . | . . . . . Storage 3 | 1 1 . 1 . Processor . | . . . . . Hackware . | . . . . . Protection 5 | . 4 1 . . Artifact . | . . . . . Weapon 11 | 3 4 4 . . Energy Gun 2 | 2 . . . . Energy Cannon 3 | . 2 1 . . Ballistic Gun 3 | 1 . 2 . . Ballistic Cannon . | . . . . . Launcher 3 | . 2 1 . . Special Weapon . | . . . . . Impact Weapon . | . . . . . Slashing Weapon . | . . . . . Piercing Weapon . | . . . . . Special Melee Weapon . | . . . . . Unidentified Prototypes . | . . . . . Parts Lost 3 | . 1 2 . . Power . | . . . . . Propulsion . | . . . . . Utility 1 | . . 1 . . Weapon 2 | . 1 1 . . Highest Loss Streak 1 | . 1 1 . . To Critical Strikes . | . . . . . Average Slot Usage (%) 99 | . 99 99 100 100 Engine 14 | . 14 14 14 14 Treads 27 | . 27 28 28 28 Storage 14 | . 14 14 14 14 Protection 13 | . 13 14 14 14 Energy Gun 3 | . 7 . . . Energy Cannon 13 | . 15 15 . . Ballistic Gun 5 | . . 2 28 28 Launcher 5 | . 4 9 . . Peak Build Rating 13 | 6 10 11 13 13 Average Rating 8 | 4 7 9 12 13 On Entrance 8 | . 6 10 11 13 Naked Turns . | . . . . . Heaviest Build 39 | 14 30 30 39 . Greatest Support 40 | 40 40 40 40 . Greatest Overweight (x) 9 | . 9 . . . Average Overweight (x) . | . . . . . Largest Inventory Capacity 15 | 8 10 10 15 15 Average Capacity 9 | 6 8 10 10 15 Most Carried 10 | 2 10 10 10 10 Average Carried 8 | 1 7 9 9 10 Final Capacity 15 | 8 10 10 15 15 Final Carried 10 | 2 10 10 10 10 Class Distribution -------------------- 100% | Mutant Dominant Class ---------------- Mutant | -10/Materials Mutant | -10/Mines Mutant | -10/Exiles Mutant | -9/Mines Resources | -11 -10 -10 -10 -9 ----------- Run | Yrd Mat Min Exi Min Matter Collected 547 | 181 257 109 . . Remotely . | . . . . . Salvage Created 988 | . 830 122 . 36 Parts 64 | . 48 13 . 3 Haulers Intercepted 2 | . 2 . . . Recyclers Shooed 1 | . 1 . . . Parts Field Recycled . | . . . . . Retrieved Matter . | . . . . . Parts Self-Destructed . | . . . . . Prevented . | . . . . . Kills | -11 -10 -10 -10 -9 ------- Run | Yrd Mat Min Exi Min Combat Hostiles Destroyed 27 | . 16 10 . 1 Guns 4 | . 3 . . 1 Cannons 7 | . 5 2 . . AOE 15 | . 8 7 . . Classes Destroyed 6 | . 4 2 . . Worker 1 | . . 1 . . Hauler 2 | . 2 . . . Operator 1 | . 1 . . . Watcher 2 | . 2 . . . Swarmer 8 | . . 8 . . Grunt 19 | . 16 2 . 1 Best Kill Streak 5 | . 5 4 . 1 Combat Bots Only 4 | . 4 3 . 1 Max Kills in Single Turn 3 | . 3 3 . 1 Gunslinging . | . . . . . Exploded 2 | . 2 2 . . Melee . | . . . . . Uniques/NPCs Destroyed . | . . . . . Combat | -11 -10 -10 -10 -9 -------- Run | Yrd Mat Min Exi Min Hostile Shots Fired 115 | . 58 28 . 29 Missed 29 | . 18 7 . 4 Damage Taken 1114 | . 530 300 . 284 Core 259 | . 164 35 . 60 Absorbed by Shields . | . . . . . Redirected to Shielding 36 | . 36 . . . Core Remaining (%) 100 | 100 . . . . Volleys Fired 70 | . 49 13 . 8 Largest 2 | . 2 2 . 2 Hottest 120 | . 120 120 . 46 Shots Fired 126 | . 92 18 . 16 Gun 58 | . 42 . . 16 Cannon 56 | . 44 12 . . Launcher 12 | . 6 6 . . Special . | . . . . . Kinetic 16 | . . . . 16 Thermal 56 | . 44 12 . . Explosive 12 | . 6 6 . . Electromagnetic 42 | . 42 . . . Robot Hit Streak 11 | . 11 3 . 6 Robot Miss Streak 4 | . 4 2 . 4 Penetration Max . | . . . . . Secondary Targets 2 | . 1 . . 1 Max Gunslinging Chain 1 | . 1 . . 1 Shots Hit Robots 64 | . 51 6 . 7 Core Hits 43 | . 28 13 . 2 Critical Kills 1 | . . 1 . . Critical Parts Destroyed . | . . . . . Critical Strikes 1 | . . 1 . . Meltdown 1 | . . 1 . . Melee Attacks . | . . . . . Impact . | . . . . . Slashing . | . . . . . Piercing . | . . . . . Sneak Attacks . | . . . . . Combat Hostiles . | . . . . . Follow-up Attacks . | . . . . . Damage Inflicted 2160 | . 1269 791 . 100 Guns 501 | . 401 . . 100 Cannons 546 | . 385 161 . . Explosions 1105 | . 478 627 . . Melee . | . . . . . Ramming 8 | . 5 3 . . Kinetic 100 | . . . . 100 Thermal 623 | . 462 161 . . Explosive 983 | . 356 627 . . Electromagnetic 446 | . 446 . . . Impact . | . . . . . Slashing . | . . . . . Piercing . | . . . . . Highest Corruption . | . . . . . Average Corruption . | . . . . . Corruption Purged . | . . . . . Corruption Blocked . | . . . . . Overload Shots . | . . . . . Overflow Damage 5 | . 5 . . . Projectiles 5 | . 5 . . . Explosions . | . . . . . Melee . | . . . . . Knockbacks . | . . . . . Impact . | . . . . . Kinetic . | . . . . . Secondary . | . . . . . Self-Inflicted Damage 145 | . 48 97 . . Shots 5 | . 2 3 . . Rammed 2 | . 1 1 . . Targets Rammed 2 | . 1 1 . . Kicked . | . . . . . Crushed . | . . . . . Highest Temperature 436 | . 436 303 . 163 Average Temperature 118 | . 121 116 . 79 Received Heat Transfer 447 | . 267 63 . 117 Effects 3 | . 2 1 . . Energy Bleed 1 | . 1 . . . Interference 2 | . 1 1 . . Siege Activations . | . . . . . Robots Corrupted . | . . . . . Combat Hostiles . | . . . . . Parts Fried 4 | . 4 . . . Impact Corruptions . | . . . . . Robots Melted 1 | . . 1 . . Combat Hostiles 1 | . . 1 . . Parts Melted 2 | . 1 1 . . Heat Transferred 1247 | . 914 333 . . Parts Sabotaged . | . . . . . Parts Stolen . | . . . . . Parts Stripped . | . . . . . Power Chain Reactions 3 | . 3 . . . Alert | -11 -10 -10 -10 -9 ------- Run | Yrd Mat Min Exi Min Peak Influence 461 | . 208 461 . 20 Initial 78 | . . 78 . . Average 160 | . 89 287 . 20 Maximum Alert Level 2 | . 1 2 . . Low Security (%) 56 | 100 88 3 . 100 Level 1 33 | . 11 70 . . Level 2 9 | . . 25 . . Level 3 . | . . . . . Level 4 . | . . . . . Level 5 . | . . . . . High Security . | . . . . . Max Security . | . . . . . Squads Dispatched 5 | . 5 . . . Investigation 4 | . 4 . . . Extermination . | . . . . . Reinforcement 1 | . 1 . . . Assault . | . . . . . Garrison . | . . . . . Intercept . | . . . . . Searches Triggered . | . . . . . Construction Impeded . | . . . . . Haulers Reinforced . | . . . . . Active Scanning Responses . | . . . . . Cargo Convoy Interrupts . | . . . . . Stealth | -11 -10 -10 -10 -9 --------- Run | Yrd Mat Min Exi Min Distress Signals . | . . . . . Communications Jammed . | . . . . . Distress Signals . | . . . . . Times Spotted 40 | . 25 10 . 5 Peak Tracking Total 5 | . 4 3 . 5 Tactical Retreats 1 | . 1 . . . Traps | -11 -10 -10 -10 -9 ------- Run | Yrd Mat Min Exi Min Traps Triggered 1 | . 1 . . . Indirectly . | . . . . . Trap Hack Attempts . | . . . . . Triggered . | . . . . . Disarmed . | . . . . . Reprogrammed 1 | . 1 . . . Reused . | . . . . . Traps Extracted . | . . . . . Installed . | . . . . . Triggered . | . . . . . Machines | -11 -10 -10 -10 -9 ---------- Run | Yrd Mat Min Exi Min Machines Disabled 6 | . 6 . . . Max in Single Turn 3 | . 3 . . . Machines Repaired . | . . . . . Machines Dismantled . | . . . . . Machines Sabotaged . | . . . . . Overloaded Fab Kills . | . . . . . Hacking | -11 -10 -10 -10 -9 --------- Run | Yrd Mat Min Exi Min Machines Accessed 12 | . 10 . 2 . Terminals 8 | . 8 . . . Fabricators . | . . . . . Repair Stations . | . . . . . Recycling Units 2 | . 2 . . . Scanalyzers . | . . . . . Garrison Access . | . . . . . Total Hacks 28 | . 26 . 2 . Successful 21 | . 19 . 2 . Failed 6 | . 6 . . . Catastrophic 1 | . 1 . . . Database Lockouts 1 | . 1 . . . Manual 23 | . 22 . 1 . Terminals 24 | . 24 . . . Fabricators . | . . . . . Repair Stations . | . . . . . Recycling Units 2 | . 2 . . . Scanalyzers . | . . . . . Garrison Access . | . . . . . Terminal Hacks 11 | . 9 . 2 . Record 1 | . . . 1 . Robot Analysis 1 | . 1 . . . Prototype ID Bank 1 | . 1 . . . Terminal Index 1 | . 1 . . . Unreport Threat 2 | . 2 . . . Locate Traps 2 | . 2 . . . Reprogram Traps 1 | . 1 . . . Zone Layout 1 | . 1 . . . Derelict Proto ID Bank 1 | . . . 1 . Fabricator Hacks . | . . . . . Repair Station Hacks . | . . . . . Recycling Unit Hacks . | . . . . . Scanalyzer . | . . . . . Garrison Access Hacks . | . . . . . Unauthorized Hacks 10 | . 10 . . . Terminals 8 | . 8 . . . Botnet 5 | . 5 . . . Skim 3 | . 3 . . . Fabricators . | . . . . . Repair Stations . | . . . . . Recycling Units 2 | . 2 . . . Tunnel 2 | . 2 . . . Scanalyzers . | . . . . . Garrison Access . | . . . . . Data Cores Recovered . | . . . . . Used . | . . . . . Hacking Detections 6 | . 6 . . . Full Trace Events 2 | . 2 . . . Feedback Events . | . . . . . Feedback Blocked . | . . . . . Robot Schematics Acquired . | . . . . . Robots Built . | . . . . . Authchips . | . . . . . Time . | . . . . . Total Robot Build Rating . | . . . . . Part Schematics Acquired . | . . . . . Parts Built . | . . . . . Authchips . | . . . . . Time . | . . . . . Total Part Build Rating . | . . . . . Parts Repaired . | . . . . . Time . | . . . . . Parts Recycled . | . . . . . Recycled Matter . | . . . . . Retrieved Matter . | . . . . . Retrieved Components . | . . . . . Parts Scanalyzed . | . . . . . Part Schematics Acquired . | . . . . . Parts Damaged . | . . . . . Bothacking | -11 -10 -10 -10 -9 ------------ Run | Yrd Mat Min Exi Min Used RIF Installer . | . . . . . Robots Hacked . | . . . . . Non-combat . | . . . . . Combat . | . . . . . Robot Hacks Applied . | . . . . . Relay Couplers Released . | . . . . . Fabnet Peak Effective % . | . . . . . Robots Rewired . | . . . . . Allies Hacked . | . . . . . Hacks Repelled . | . . . . . Allies | -11 -10 -10 -10 -9 -------- Run | Yrd Mat Min Exi Min Total Allies 1 | . . 1 . . Largest Group 1 | . . 1 . . Highest-Rated Group 31 | . . 31 . . Highest-Rated Ally 31 | . . 31 . . Total Orders . | . . . . . Ally Attacks 22 | . . 22 . . Total Damage 299 | . . 299 . . Kills 3 | . . 3 . . Allies Corrupted . | . . . . . Allies Melted . | . . . . . Intel | -11 -10 -10 -10 -9 ------- Run | Yrd Mat Min Exi Min Robot Analysis Total 1 | . 1 . . . Derelict Logs Recovered 2 | . . 2 . . Drone Launches . | . . . . . Drone Recoveries . | . . . . . Exploration | -11 -10 -10 -10 -9 ------------- Run | Yrd Mat Min Exi Min Turns Passed 2413 | 87 1156 778 369 23 Spaces Moved 1186 | 50 580 328 228 . Core 5 | 4 1 . . . Treads 1181 | 46 579 328 228 . Legs . | . . . . . Wheels . | . . . . . Hover . | . . . . . Flight . | . . . . . Fastest Speed 50 | 50 160 160 160 . Average Speed 159 | 151 160 160 160 . Slowest Speed 500 | 160 500 160 160 . Overloaded Moves . | . . . . . Propulsion Burnouts . | . . . . . Robots Hopped . | . . . . . Cave-ins Triggered . | . . . . . Exploration Rate (%) 44 | 4 92 64 59 2 Regions Visited 4 Branch Regions 3 Pre-discovered Areas 4 | . 2 1 1 . Known Exits Taken . | . . . . . Unknown Exits Taken 4 | 1 1 1 1 . Scrap Searched 1 | . . 1 . . Spaces Dug 9 | . . 9 . . Terrain Destroyed 115 | . 50 65 . . Melee . | . . . . . Projectile . | . . . . . AOE 115 | . 50 65 . . Terrain Rammed . | . . . . . Walls Destroyed . | . . . . . Machines Disabled . | . . . . . Actions | -11 -10 -10 -10 -9 --------- Run | Yrd Mat Min Exi Min Total 1578 | 58 715 563 234 8 Wait 264 | . 53 211 . . Move 1182 | 49 579 327 227 . Hop . | . . . . . Pick Up 19 | 2 13 2 2 . Fast Attach 12 | 6 4 2 . . Attach 3 | . 1 2 . . Detach . | . . . . . Swap 12 | 1 8 2 1 . Drop 14 | . 7 3 4 . Fire 70 | . 49 13 . 8 Melee . | . . . . . Ram . | . . . . . Kick . | . . . . . Crush 2 | . 1 1 . . Escape Stasis . | . . . . . Rewire . | . . . . . Trap . | . . . . . Miscellaneous . | . . . . . Route ------- -11/Scrapyard -10/Materials (discovered 4 exits: [*Mat x3] / [*Min]) -10/Mines (discovered 2 exits: [*Mat] / *Exi) -10/Exiles (discovered 2 exits: [*Min x2]) -9/Mines History --------- Turn | Location | Event 7 | -11/Scrapyard | Discovered new exit (range 16) 88 | -11/Scrapyard | Entered Materials 109 | -10/Materials | Central database locked down 306 | -10/Materials | Build established: Mutant 344 | -10/Materials | Discovered new exit (range 12) 384 | -10/Materials | Core integrity fell below 50% 433 | -10/Materials | Discovered new exit (range 13) 943 | -10/Materials | Discovered new exit (range 16) 1120 | -10/Materials | Discovered new exit (range 16) 1244 | -10/Materials | Entered Mines 1271 | -10/Mines | Discovered new exit (range 7) 1358 | -10/Mines | Received a Mining Laser from a helpful Derelict 1492 | -10/Mines | Learned Materials stockpile data 1539 | -10/Mines | Received a Rocket Launcher from a helpful Derelict 1565 | -10/Mines | Assembled infested the area 1937 | -10/Mines | Joined a pair of Derelicts in attacking an 0b10 outpost 2016 | -10/Mines | Discovered new exit (range 5) 2022 | -10/Mines | Entered Exiles 2046 | -10/Exiles | Discovered new exit (range 15) 2069 | -10/Exiles | Met 8R-AWN 2091 | -10/Exiles | Met EX-HEX 2138 | -10/Exiles | Met EX-BIN 2155 | -10/Exiles | Aligned with FarCom system 2157 | -10/Exiles | Given EX-Vault access code 2195 | -10/Exiles | Opened EX-Vault 2204 | -10/Exiles | Found Firepult 2239 | -10/Exiles | Warned to stay clear of 0b10 Research branches 2285 | -10/Exiles | Met EX-DEC 2292 | -10/Exiles | Learned location of Zion (-6) 2373 | -10/Exiles | Discovered new exit (range 14) 2391 | -10/Exiles | Left Exiles lab with Firepult 2391 | -10/Exiles | Entered Mines 2402 | -9/Mines | Core integrity fell below 20% 2414 | -9/Mines | Destroyed by S-10 Pest with Light Assault Rifle Last Messages --------------- chain! 02292_ Connecting with EX-Message Board... >>Record "MSG001714-01*" PINNED - TO ALL TESTERS: Stay away from Zion. Imprinter means us harm and is serious about it. World map updated: -6/Zion. 02343_ Dropped Med. Storage Unit. 02373_ EXIT=FOUND LOCATION=UNKNOWN GOAL=ESCAPE 02391_ Receiving FarCom transmissions... 02391_ G-34 Mercenary destroyed. 02391_ Switching to secondary target: G-47 Trooper. 02399_ C-30 ARC bursts open, deploying its payload. 02399_ S-10 Pest unfolds itself. 02399_ S-10 Pest destroyed. 02407_ Critical hit (Burn: +37). Map ----- +----------------------------------------------------+ | | | | | | | | | | | | | | | | | | | | | | | | | | | | | | | | | ???????????????????????????????????? | | ???????????????????????????????????? | | ???????????????????????????????????? | | ???????????????????????????????????? | | ???????????????????????????????????? | | ???????????????????????########????? | | ???????????????????????# #????? | | ???????????????????????# #????? | | ???????????????????????#[ #????? | | ???????????????????????#%@ g #????? | | ????????????????????sss * #????? | | ???????????????? %= #### #????? | | ???????????? % ??????########????? | | ??????????? ??????????????????????? | | ???????????????????????????????????? | | ???????????????????????????????????? | | ???????????????????????????????????? | | ???????????????????????????????????? | | ???????????????????????????????????? | | ???????????????????????????????????? | | ???????????????????????????????????? | | ???????????????????????????????????? | | ???????????????????????????????????? | | ???????????????????????????????????? | | ???????????????????????????????????? | | ???????????????????????????????????? | | ???????????????????????????????????? | | ???????????????????????????????????? | | ???????????????????????????????????? | | ???????????????????????????????????? | | ???????????????????????????????????? | | ???????????????????????????????????? | | ???????????????????????????????????? | | ???????????????????????????????????? | +----------------------------------------------------+ Best States ------------- Heat Dissipation 25 Energy Generation 12 Energy Capacity 265 Matter Stores 300 Matter Capacity 300 Sight Range 16 Terrain Scan Density 10 Armor Coverage 150 Core Shielding 20 Weapon Shielding 33 Evasion (%) 40 Recoil Reduction 2 Item Schematics ----------------- None Robot Schematics ------------------ None Fabricated ------------ Nothing Alien Tech Used ----------------- None Achievements -------------- None Challenges ------------ None Game ------ Seed WarlordIonicCoupler Manual? 0 Play Time 00:12:08 Cumulative 188.1 hours Start 2024.11.21 @ 01:39:51 End 2024.11.21 @ 01:51:46 Sessions 1 Manual Loads 0 Difficulty Rogue Special Mode None Game No. 122 Rogue 86 Adventurer 36 Explorer 0 Win Type - Total 3 Types 2/0/0/1/0/0/0/0/0 Lore% 56 Gallery% 65 Achievement% 57 Wizard Run 0 Options --------- Layout 1 ASCII 0 Keyboard 0 Movement Numpad Keybinds 0 Fullscreen 1 Font 48/Smallcaps Map View 50x35 Zoom Use 0% Tactical HUD 1 Map Filters NONE Filters NONE Steam 1 RUN: 98129c2b-2abb-4c98-884e-f1fea0539bbf